Cogmind - Beta 12 @@@ ROGUE MODE // 2023.05.15 @ 10:40:15 Player: dhtilly Result: Destroyed by as-94473 with Assembled Heavy Rifle Performance ------------- Evolutions (0) 0 Regions Visited (4) 800 Robots Destroyed (11) 55 Value Destroyed (338) 338 Prototype IDs (24) 480 Alien Tech Used (0) 0 Bonus (300) 300 TOTAL SCORE: 1973 Bonus ------- Aligned with FarCom 300 Cogmind --------- Core Integrity 0/250 Matter 223/300 Energy 100/100 System Corruption 0% Temperature Warm (100) Movement Walking (190) Ox1 Location -9/Mines Parts ------- > --- POWER (1) -------- (None) > --- PROPULSION (2) --- Aluminum Leg Aluminum Leg > --- UTILITY (2) ------ Medium Storage Unit Hardened Light Armor Plating > --- WEAPON (2) ------- Particle Gun Rocket Launcher > --- INVENTORY (10) --- Heavy Ion Engine Heavy Ion Engine Improved Heat Sink Superbattery (1500) Authchip [Armor] PSU Rigger Assault Rifle Rocket Launcher Peak State ------------ > --- POWER ------------ Light Nuclear Core > --- PROPULSION ------- Aluminum Leg Aluminum Leg > --- UTILITY ---------- Improved Heat Sink Medium Storage Unit > --- WEAPON ----------- Assault Rifle Rocket Launcher > --- INVENTORY -------- Heavy Ion Engine Heavy Ion Engine Aluminum Leg Aluminum Leg Superbattery Hardened Light Armor Plating Authchip [Armor] PSU Rigger Particle Gun Assault Rifle [Rating: 15] Favorites ----------- Power Light Nuclear Core Engine Ion Engine Power Core Light Nuclear Core Propulsion Aluminum Leg Leg Aluminum Leg Utility Medium Storage Unit Device Improved Heat Sink Storage Medium Storage Unit Protection Hardened Light Armor Plating Weapon Assault Rifle Energy Gun Particle Gun Ballistic Gun Assault Rifle Launcher Rocket Launcher Build | -11 -10 -10 -10 -9 ------- Run | Jun Mat Min Exi Min Slots Evolved . | . . . . . Power . | . . . . . Propulsion . | . . . . . Utility . | . . . . . Weapon . | . . . . . Parts Attached 24 | 6 9 . . 9 Power 5 | 1 4 . . . Engine 3 | 1 2 . . . Core 2 | . 2 . . . Reactor . | . . . . . Propulsion 7 | 2 3 . . 2 Treads . | . . . . . Leg 7 | 2 3 . . 2 Wheel . | . . . . . Hover . | . . . . . Flight . | . . . . . Utility 6 | 1 2 . . 3 Device 3 | . 1 . . 2 Storage 2 | 1 1 . . . Processor . | . . . . . Hackware . | . . . . . Protection 1 | . . . . 1 Artifact . | . . . . . Weapon 6 | 2 . . . 4 Energy Gun 1 | . . . . 1 Energy Cannon . | . . . . . Ballistic Gun 3 | 2 . . . 1 Ballistic Cannon . | . . . . . Launcher 2 | . . . . 2 Special Weapon . | . . . . . Impact Weapon . | . . . . . Slashing Weapon . | . . . . . Piercing Weapon . | . . . . . Special Melee Weapon . | . . . . . Unidentified Prototypes 1 | . 1 . . . Parts Lost 5 | . 1 . . 4 Power 2 | . 1 . . 1 Propulsion 2 | . . . . 2 Utility . | . . . . . Weapon 1 | . . . . 1 Highest Loss Streak 4 | . 1 . . 4 To Critical Strikes . | . . . . . Average Slot Usage (%) 94 | . 90 100 100 91 Engine 4 | . 9 . . . Core 8 | . 4 14 14 6 Leg 28 | . 28 28 28 28 Device 9 | . 5 14 14 7 Storage 14 | . 14 14 14 14 Ballistic Gun 26 | . 28 28 28 11 Launcher 1 | . . . . 9 Naked Turns . | . . . . . Heaviest Build 22 | 14 20 20 20 22 Greatest Support 20 | 20 20 20 20 20 Greatest Overweight (x) 1 | . . . . 1 Average Overweight (x) . | . . . . . Largest Inventory Capacity 10 | 8 10 10 10 10 Average Capacity 9 | 6 9 10 10 10 Most Carried 10 | 4 10 10 10 10 Average Carried 9 | 2 8 10 9 8 Final Capacity 10 | 8 10 10 10 10 Final Carried 10 | 4 10 10 9 8 Class Distribution -------------------- 63% | Scavenger-Mutant 36% | Mutant Dominant Class ---------------- Mutant | -10/Materials Scavenger-Mutant | -10/Mines Scavenger-Mutant | -10/Exiles Mutant | -9/Mines Resources | -11 -10 -10 -10 -9 ----------- Run | Jun Mat Min Exi Min Matter Collected 572 | 235 216 . . 121 Remotely . | . . . . . Salvage Created 435 | . 338 . . 97 Parts 16 | . 11 . . 5 Haulers Intercepted . | . . . . . Recyclers Shooed 1 | . . . . 1 Parts Field Recycled . | . . . . . Retrieved Matter . | . . . . . Parts Self-Destructed . | . . . . . Prevented . | . . . . . Kills | -11 -10 -10 -10 -9 ------- Run | Jun Mat Min Exi Min Combat Hostiles Destroyed 16 | . 8 . . 8 Melee 1 | . 1 . . . Guns 8 | . 7 . . 1 AOE 7 | . . . . 7 Classes Destroyed 5 | . 1 . . 4 Tunneler 1 | . . . . 1 Recycler 1 | . . . . 1 Grunt 8 | . 8 . . . Demolisher 1 | . . . . 1 Assembled 7 | . . . . 7 Best Kill Streak 5 | . 5 . . 5 Combat Bots Only 5 | . 5 . . 4 Max Kills in Single Turn 2 | . 1 . . 2 Gunslinging . | . . . . . Exploded 2 | . . . . 2 Melee 1 | . 1 . . . Uniques/NPCs Destroyed . | . . . . . Combat | -11 -10 -10 -10 -9 -------- Run | Jun Mat Min Exi Min Damage Taken 972 | . 456 . . 516 Core 255 | . 88 . . 167 Absorbed by Shields . | . . . . . Core Remaining (%) 100 | 100 . . . . Volleys Fired 40 | . 25 . . 15 Largest 2 | . 2 . . 2 Hottest 85 | . 40 . . 85 Shots Fired 68 | . 50 . . 18 Gun 61 | . 50 . . 11 Cannon . | . . . . . Launcher 7 | . . . . 7 Special . | . . . . . Kinetic 53 | . 50 . . 3 Thermal 8 | . . . . 8 Explosive 7 | . . . . 7 Electromagnetic . | . . . . . Robot Hit Streak 11 | . 11 . . 5 Robot Miss Streak 4 | . 3 . . 4 Penetration Max . | . . . . . Secondary Targets 3 | . 3 . . . Max Gunslinging Chain 1 | . 1 . . . Shots Hit Robots 46 | . 38 . . 8 Core Hits 29 | . 15 . . 14 Critical Kills . | . . . . . Critical Parts Destroyed . | . . . . . Critical Strikes 1 | . . . . 1 Burn 1 | . . . . 1 Melee Attacks . | . . . . . Impact . | . . . . . Slashing . | . . . . . Piercing . | . . . . . Sneak Attacks . | . . . . . Combat Hostiles . | . . . . . Follow-up Attacks . | . . . . . Damage Inflicted 1155 | . 480 4 . 671 Guns 544 | . 477 . . 67 Cannons . | . . . . . Explosions 604 | . . . . 604 Melee . | . . . . . Ramming 7 | . 3 4 . . Kinetic 513 | . 477 . . 36 Thermal 31 | . . . . 31 Explosive 604 | . . . . 604 Electromagnetic . | . . . . . Impact . | . . . . . Slashing . | . . . . . Piercing . | . . . . . Highest Corruption . | . . . . . Average Corruption . | . . . . . Corruption Purged . | . . . . . Corruption Blocked . | . . . . . Overload Shots . | . . . . . Overflow Damage . | . . . . . Projectiles . | . . . . . Explosions . | . . . . . Melee . | . . . . . Knockbacks . | . . . . . Impact . | . . . . . Kinetic . | . . . . . Secondary . | . . . . . Self-Inflicted Damage . | . . . . . Shots . | . . . . . Rammed . | . . . . . Targets Rammed 2 | . 1 1 . . Kicked 2 | . 1 1 . . Crushed . | . . . . . Highest Temperature 120 | . 5 . . 120 Average Temperature 46 | . 5 . . 61 Received Heat Transfer 252 | . 252 . . . Siege Activations . | . . . . . Robots Corrupted . | . . . . . Combat Hostiles . | . . . . . Parts Fried . | . . . . . Impact Corruptions . | . . . . . Robots Melted . | . . . . . Combat Hostiles . | . . . . . Parts Melted . | . . . . . Heat Transferred 148 | . . . . 148 Parts Sabotaged . | . . . . . Parts Stolen . | . . . . . Parts Stripped . | . . . . . Power Chain Reactions . | . . . . . Missiles Intercepted . | . . . . . Alert | -11 -10 -10 -10 -9 ------- Run | Jun Mat Min Exi Min Peak Influence 130 | . 130 22 . 82 Initial 22 | . . 22 . . Average 36 | . 47 22 . 19 Maximum Alert Level . | . . . . . Low Security (%) 100 | 100 100 100 . 100 Level 1 . | . . . . . Level 2 . | . . . . . Level 3 . | . . . . . Level 4 . | . . . . . Level 5 . | . . . . . High Security . | . . . . . Max Security . | . . . . . Squads Dispatched 4 | . 4 . . . Investigation 3 | . 3 . . . Extermination . | . . . . . Reinforcement 1 | . 1 . . . Assault . | . . . . . Garrison . | . . . . . Intercept . | . . . . . Searches Triggered . | . . . . . Construction Impeded . | . . . . . Haulers Reinforced . | . . . . . Active Scanning Responses . | . . . . . Cargo Convoy Interrupts . | . . . . . Stealth | -11 -10 -10 -10 -9 --------- Run | Jun Mat Min Exi Min Distress Signals . | . . . . . Communications Jammed . | . . . . . Distress Signals . | . . . . . Times Spotted 19 | . 11 . . 8 Peak Tracking Total 6 | . 6 . . 5 Tactical Retreats . | . . . . . Traps | -11 -10 -10 -10 -9 ------- Run | Jun Mat Min Exi Min Traps Triggered 1 | . 1 . . . Indirectly . | . . . . . Trap Hack Attempts . | . . . . . Triggered . | . . . . . Disarmed . | . . . . . Reprogrammed . | . . . . . Reused . | . . . . . Traps Extracted . | . . . . . Installed . | . . . . . Triggered . | . . . . . Machines | -11 -10 -10 -10 -9 ---------- Run | Jun Mat Min Exi Min Machines Disabled . | . . . . . Max in Single Turn . | . . . . . Machines Repaired . | . . . . . Machines Sabotaged . | . . . . . Overloaded Fab Kills . | . . . . . Hacking | -11 -10 -10 -10 -9 --------- Run | Jun Mat Min Exi Min Machines Accessed 5 | . 3 . 2 . Terminals 3 | . 3 . . . Fabricators . | . . . . . Repair Stations . | . . . . . Recycling Units . | . . . . . Scanalyzers . | . . . . . Garrison Access . | . . . . . Total Hacks 9 | . 7 . 2 . Successful 4 | . 2 . 2 . Failed 5 | . 5 . . . Catastrophic 1 | . 1 . . . Database Lockouts . | . . . . . Manual 7 | . 6 . 1 . Terminals 7 | . 7 . . . Fabricators . | . . . . . Repair Stations . | . . . . . Recycling Units . | . . . . . Scanalyzers . | . . . . . Garrison Access . | . . . . . Terminal Hacks 4 | . 2 . 2 . Record 1 | . . . 1 . Part Schematic 1 | . 1 . . . Terminal Index 1 | . 1 . . . EX-Prototype ID Bank 1 | . . . 1 . Fabricator Hacks . | . . . . . Repair Station Hacks . | . . . . . Recycling Unit Hacks . | . . . . . Scanalyzer . | . . . . . Garrison Access Hacks . | . . . . . Unauthorized Hacks . | . . . . . Terminals . | . . . . . Fabricators . | . . . . . Repair Stations . | . . . . . Recycling Units . | . . . . . Scanalyzers . | . . . . . Garrison Access . | . . . . . Data Cores Recovered . | . . . . . Used . | . . . . . Hacking Detections 3 | . 3 . . . Full Trace Events 1 | . 1 . . . Feedback Events . | . . . . . Feedback Blocked . | . . . . . Robot Schematics Acquired . | . . . . . Robots Built . | . . . . . Authchips . | . . . . . Time . | . . . . . Total Robot Build Rating . | . . . . . Part Schematics Acquired 1 | . 1 . . . Parts Built . | . . . . . Authchips . | . . . . . Time . | . . . . . Total Part Build Rating . | . . . . . Parts Repaired . | . . . . . Time . | . . . . . Parts Recycled . | . . . . . Recycled Matter . | . . . . . Retrieved Matter . | . . . . . Retrieved Components . | . . . . . Parts Scanalyzed . | . . . . . Part Schematics Acquired . | . . . . . Parts Damaged . | . . . . . Bothacking | -11 -10 -10 -10 -9 ------------ Run | Jun Mat Min Exi Min Used RIF Installer . | . . . . . Robots Hacked . | . . . . . Non-combat . | . . . . . Combat . | . . . . . Robot Hacks Applied . | . . . . . Relay Couplers Released . | . . . . . Fabnet Peak Effective % . | . . . . . Robots Rewired . | . . . . . Allies Hacked . | . . . . . Hacks Repelled . | . . . . . Allies | -11 -10 -10 -10 -9 -------- Run | Jun Mat Min Exi Min Total Allies . | . . . . . Largest Group . | . . . . . Highest-Rated Group . | . . . . . Highest-Rated Ally . | . . . . . Total Orders . | . . . . . Ally Attacks . | . . . . . Total Damage . | . . . . . Kills . | . . . . . Allies Corrupted . | . . . . . Allies Melted . | . . . . . Intel | -11 -10 -10 -10 -9 ------- Run | Jun Mat Min Exi Min Robot Analysis Total . | . . . . . Derelict Logs Recovered 2 | . . 2 . . Drone Launches . | . . . . . Drone Recoveries . | . . . . . Exploration | -11 -10 -10 -10 -9 ------------- Run | Jun Mat Min Exi Min Turns Passed 1431 | 54 640 167 423 147 Spaces Moved 1031 | 39 441 139 350 62 Core 7 | 7 . . . . Treads . | . . . . . Legs 1024 | 32 441 139 350 62 Wheels . | . . . . . Hover . | . . . . . Flight . | . . . . . Fastest Speed 50 | 50 120 120 120 120 Average Speed 121 | 107 120 120 120 150 Slowest Speed 190 | 120 120 120 120 190 Overloaded Moves . | . . . . . Propulsion Burnouts . | . . . . . Robots Hopped . | . . . . . Cave-ins Triggered . | . . . . . Exploration Rate (%) 45 | 3 84 39 79 20 Regions Visited 4 Branch Regions 3 Pre-discovered Areas 1 | . . . 1 . Known Exits Taken . | . . . . . Unknown Exits Taken 4 | 1 1 1 1 . Scrap Searched 2 | . . . . 2 Spaces Dug . | . . . . . Terrain Destroyed 82 | . . . . 82 Melee . | . . . . . Projectile . | . . . . . AOE 82 | . . . . 82 Terrain Rammed . | . . . . . Walls Destroyed . | . . . . . Machines Disabled . | . . . . . Actions | -11 -10 -10 -10 -9 --------- Run | Jun Mat Min Exi Min Total 1143 | 48 506 139 354 96 Wait 16 | . 12 . . 4 Move 1027 | 38 440 138 349 62 Hop . | . . . . . Pick Up 19 | 4 9 . 2 4 Fast Attach 10 | 6 4 . . . Attach 4 | . 1 . . 3 Detach 1 | . 1 . . . Swap 10 | . 4 . . 6 Drop 14 | . 9 . 3 2 Fire 40 | . 25 . . 15 Melee . | . . . . . Ram . | . . . . . Kick 2 | . 1 1 . . Crush . | . . . . . Escape Stasis . | . . . . . Rewire . | . . . . . Trap . | . . . . . Miscellaneous . | . . . . . Route ------- -11/Junkyard -10/Materials (discovered 3 exits: [*Mat] / [*Min x2]) -10/Mines -10/Exiles -9/Mines History --------- Turn | Location | Event 10 | -11/Junkyard | Discovered new exit (range 16) 55 | -11/Junkyard | Entered Materials 122 | -10/Materials | Met 8R-AWN 201 | -10/Materials | Discovered new exit (range 11) 316 | -10/Materials | Build established: Mutant 385 | -10/Materials | Discovered new exit (range 16) 674 | -10/Materials | Discovered new exit (range 12) 695 | -10/Materials | Entered Mines 697 | -10/Mines | Followed 8R-AWN into the Mines 712 | -10/Mines | Met a Derelict bent on vengeance 752 | -10/Mines | Build established: Scavenger-Mutant 818 | -10/Mines | Learned Materials interactive machine intel 830 | -10/Mines | Learned location of 1 exit from Materials 857 | -10/Mines | Discovered new exit (range 5) 862 | -10/Mines | Entered Exiles 891 | -10/Exiles | Welcomed by 8R-AWN 913 | -10/Exiles | Met EX-HEX 946 | -10/Exiles | Met EX-BIN 961 | -10/Exiles | Aligned with FarCom system 962 | -10/Exiles | Given EX-Vault access code 991 | -10/Exiles | Opened EX-Vault 1000 | -10/Exiles | Found PSU Rigger 1004 | -10/Exiles | Found Superbattery 1026 | -10/Exiles | Warned to stay clear of 0b10 Research branches 1111 | -10/Exiles | Met EX-DEC 1136 | -10/Exiles | Visited The Gauntlet 1216 | -10/Exiles | Learned location of Zion (-7) 1273 | -10/Exiles | Discovered new exit (range 11) 1285 | -10/Exiles | Stole two prototypes: PSU Rigger, Superbattery 1285 | -10/Exiles | Entered Mines 1329 | -9/Mines | Assembled infested the area 1357 | -9/Mines | Core integrity fell below 50% 1361 | -9/Mines | Core integrity fell below 20% 1401 | -9/Mines | Lost 4 parts (1p2n1w) 1432 | -9/Mines | Destroyed by as-94473 with Assembled Heavy Rifle Last Messages --------------- 01402_ R-06 Scavenger collects Wheel. 01403_ U-05 Engineer lays Concrete. 01404_ The unstable cave ceiling collapses. 01405_ as-20972 destroyed. 01406_ The unstable cave ceiling collapses. 01406_ R-06 Scavenger collects Lgt. Ion Engine. 01413_ K-01 Serf collects debris. 01416_ R-06 Scavenger collects Imp. Terrain Scanner. 01420_ R-06 Scavenger collects Welding Torch. 01421_ K-01 Serf collects debris. 01425_ R-06 Scavenger suffers critical hit (Burn). 01426_ The unstable cave ceiling collapses. 01427_ R-06 Scavenger destroyed. 01427_ as-13529 destroyed. 01427_ K-01 Serf collects debris. 01429_ as-72172 destroyed. 01430_ The unstable cave ceiling collapses. 01431_ as-19475 destroyed. 01431_ K-01 Serf collects debris. 01432_ K-01 Serf destroyed. Map ----- +----------------------------------------------------+ | ?????????????????????????????????????????????????? | | ?????????????????????????????????????????????????? | | ?????????????????????????????????????????????????? | | ?????????????????????????????????????????????????? | | ?????????????????????????????????????????????????? | | ?????????????????????????????????????????????????? | | ?????????????????????????????????????????????????? | | ?????????????????????????????????????????????????? | | ?????????????????????????????????????????????????? | | ?????????????????????????????????????????????????? | | ???????????????????????????????######????????????? | | ????????????????????????????### #????????????? | | ?????????????????????????### ?????????????? | | ??????????????????###????# #? ??????????? | | ?????????????????## ##??# #??# ??????????? | | ?????????????????# ##?# #??# ?????????? | | ?????????????????# ### ##?##s #????????? | | ?????????????????# ## #?# s????????? | | ??????????????????# #?# #???????? | | ??????????????????### # # #??# s ####???? | | ????????????????????## #???# ##??? | | ?????????????????#### #???? #??? | | ???????????### ### # #????? ##?? | | ?????????? = # #??????# ### | | ?????????? *% !## #???????# ? | | ?????????? @ =%## ##???????# ## | | ?????????? a % ####???????#^! # | | ?????????? ! ##???????# # | | ??????????? # # ######### # ^ | | ??????????? ### %k | | ????????????######?####??## #### | | ??????????????????????????## [ ########### #??# | | ???????????????????????????# !##?????????# | | ??????????????????????????# ] ##??????????###### | | ??????????????????????????# ##????????????????## | | ??????????????????????????# ##??????????????????## | | ??????????????????????????##?????????????????????? | | ?????????????????????????????????????????????????? | | ?????????????????????????????????????????????????? | | ?????????????????????????????????????????????????? | | ?????????????????????????????????????????????????? | | | | | | | | | | | | | | | | | | | +----------------------------------------------------+ Best States ------------- Heat Dissipation 39 Energy Generation 14 Energy Capacity 250 Matter Stores 300 Matter Capacity 300 Sight Range 16 Terrain Scan Density 10 Armor Coverage 150 Evasion (%) 55 Authchip Count 1 Item Schematics ----------------- Hcp. Storage Unit | -10/Materials | Hacked Robot Schematics ------------------ None Fabricated ------------ Nothing Alien Tech Used ----------------- None Achievements -------------- None Challenges ------------ None Game ------ Seed GaussHypercooledCalibrator Manual? 0 Play Time 00:15:32 Cumulative 201.8 hours Start 2023.05.14 @ 23:53:35 End 2023.05.15 @ 10:40:15 Sessions 3 Manual Loads 0 Difficulty Rogue Special Mode None Game No. 100 Rogue 100 Adventurer 0 Explorer 0 Win Type - Total 3 Types 3/0/0/0/0/0/0/0/0 Lore% 56 Gallery% 69 Achievement% 57 Wizard Run 0 Options --------- ASCII 0 Keyboard 1 Movement Vi Keybinds 0 Fullscreen 1 Font 12/Smallcaps Map View 83x54 Tactical HUD 1 Map Filters NONE Filters NONE Steam 1 RUN: 46b106f2-29ca-4f84-8273-da011801debc